bitfinex/quotes_BTCUSD_20240827
["timestamp","ask_amount","ask_price","bid_price","bid_amount"]
[1724800547414,0.1995,59318.0,59302.0,0.00337168]
[1724800547772,0.2045,59318.0,59303.0,0.2174]
[1724800547975,0.2045,59318.0,59304.0,0.00337159]
[1724800548113,0.1995,59318.0,59304.0,0.00337159]
[1724800548521,0.1623,59321.0,59304.0,0.00337159]
[1724800548722,0.1623,59321.0,59303.0,0.38586077]
[1724800549370,0.005,59318.0,59304.0,0.00337152]
[1724800549581,0.005,59318.0,59305.0,0.36386077]
[1724800549974,0.214,59322.0,59305.0,0.36386077]
[1724800550154,0.214,59322.0,59306.0,0.00337145]
[1724800550355,0.008,59321.0,59307.0,0.2172]
[1724800550578,0.008,59321.0,59308.0,0.00337145]
[1724800550782,0.214,59322.0,59308.0,0.00337145]
[1724800551024,0.214,59322.0,59307.0,0.2172]
[1724800551025,0.008,59321.0,59307.0,0.2172]
[1724800551255,0.214,59322.0,59307.0,0.22057145]
[1724800551478,0.40628127,59318.0,59307.0,0.2192]
[1724800551682,0.2183,59317.0,59307.0,0.002]
[1724800552366,0.02640157,59324.0,59305.0,0.1767717]
[1724800552367,0.2183,59323.0,59305.0,0.1767717]
[1724800552568,0.2183,59323.0,59305.0,0.1734]
[1724800552765,0.2183,59323.0,59307.0,0.2151]
[1724800553309,0.2183,59323.0,59307.0,0.2201]
[1724800554968,0.2193,59323.0,59307.0,0.2201]
[1724800555179,0.2193,59323.0,59307.0,0.2151]
[1724800555869,0.2193,59323.0,59306.0,1.24829156]
[1724800555870,0.2153,59317.0,59306.0,1.24829156]
[1724800556558,0.1692,59316.0,59306.0,1.24829156]
[1724800556976,0.2153,59317.0,59307.0,0.2063]
[1724800557211,0.2153,59317.0,59307.0,0.20967188]
[1724800557212,0.001,59317.0,59307.0,0.20967188]
[1724800557442,0.001,59317.0,59308.0,0.43196077]
[1724800557683,0.001,59317.0,59309.0,0.2063]
[1724800557914,0.001,59316.0,59309.0,0.20967125]
[1724800558125,0.001,59316.0,59309.0,0.2063]
[1724800558360,0.001,59316.0,59308.0,0.2635]
[1724800558582,0.2153,59315.0,59308.0,0.2635]
[1724800558984,0.2153,59315.0,59309.0,1.24829156]
[1724800559178,0.1692,59314.0,59309.0,1.24829156]
[1724800559398,0.1692,59314.0,59309.0,1.25629156]
[1724800559613,0.1692,59314.0,59309.0,1.24829156]
[1724800560533,0.1702,59314.0,59309.0,1.25729156]
[1724800560970,0.1692,59314.0,59309.0,1.24829156]
[1724800561197,0.1692,59314.0,59309.0,1.25329156]
[1724800561656,0.2086,59320.0,59310.0,0.00337189]
[1724800561846,0.2086,59320.0,59309.0,0.206]
[1724800562117,0.001,59314.0,59309.0,0.216]
[1724800562605,0.2086,59320.0,59309.0,0.206]
[1724800563087,0.167,59324.0,59309.0,0.201]
[1724800563332,0.61768127,59325.0,59309.0,0.201]
[1724800563333,0.61768127,59325.0,59310.0,0.17877138]
[1724800563608,0.02639982,59326.0,59317.0,0.005]
[1724800563842,0.00089981,59332.0,59324.0,0.005]
[1724800564105,0.00089981,59332.0,59315.0,0.40628127]
[1724800564107,0.00089981,59332.0,59331.0,0.2119]
[1724800564325,0.00089981,59332.0,59331.0,0.4804]
[1724800564556,0.008998,59356.0,59331.0,0.4804]
[1724800564557,0.008998,59356.0,59338.0,0.005]
[1724800564737,0.008998,59356.0,59331.0,1.53975233]
[1724800564738,0.50540786,59346.0,59342.0,0.2119]
[1724800564976,0.50540786,59346.0,59339.0,0.23013004]
[1724800564977,0.008998,59356.0,59344.0,0.2119]
[1724800565214,0.008998,59356.0,59346.0,0.3774]
[1724800565421,0.008998,59356.0,59347.0,0.29482988]
[1724800565629,0.008998,59356.0,59347.0,0.29146077]
[1724800566271,0.2106,59355.0,59347.0,0.1]
[1724800566539,0.008998,59356.0,59348.0,0.00336956]
[1724800566776,0.008998,59356.0,59347.0,0.004]
[1724800567888,0.008998,59356.0,59348.0,0.003]
[1724800568303,0.008998,59356.0,59349.0,0.00336944]
[1724800568692,0.008998,59356.0,59348.0,0.004]
[1724800568924,0.008998,59356.0,59349.0,0.00336935]
[1724800569352,0.008998,59356.0,59350.0,0.216]
[1724800569759,0.008998,59356.0,59350.0,0.00336906]
[1724800569958,0.008998,59356.0,59351.0,0.16846077]
[1724800570086,0.008998,59356.0,59351.0,1.43975233]
[1724800571118,0.008998,59356.0,59354.0,0.216]
[1724800571321,0.008998,59356.0,59355.0,1.44312113]
[1724800571520,0.008998,59356.0,59355.0,1.43975233]
[1724800572101,0.008998,59356.0,59355.0,1.24829156]
[1724800572844,0.008998,59356.0,59355.0,1.26129156]
[1724800572845,0.009998,59356.0,59355.0,1.26129156]
[1724800574488,0.009998,59356.0,59355.0,1.27329156]
[1724800580223,0.009998,59356.0,59355.0,1.46475233]
[1724800580350,0.009998,59356.0,59355.0,1.56475233]
[1724800581730,0.009998,59356.0,59355.0,1.77255233]
[1724800582315,0.009998,59356.0,59355.0,1.94405233]
[1724800582518,0.00089981,59362.0,59360.0,1.23829356]
[1724800583781,0.00089981,59362.0,59360.0,1.24929356]
[1724800583993,0.00089981,59362.0,59360.0,1.26029356]
[1724800584650,0.00089981,59362.0,59361.0,1.53475433]
[1724800584857,0.00089981,59362.0,59361.0,1.74545433]
[1724800585066,0.00089981,59362.0,59361.0,1.91235433]
[1724800586154,0.00089981,59362.0,59361.0,1.92635433]
[1724800586360,0.00089981,59362.0,59361.0,1.92235433]
[1724800586560,0.00089981,59362.0,59361.0,1.93635433]
[1724800586762,0.00089981,59362.0,59361.0,1.93135433]
[1724800586963,0.00089981,59362.0,59361.0,1.91235433]
[1724800587160,0.00089981,59362.0,59361.0,1.94035433]
[1724800588241,0.00089981,59362.0,59361.0,1.93535433]
[1724800588448,0.00061524,59369.0,59367.0,1.23739375]
[1724800588649,0.00061524,59369.0,59368.0,1.23739375]
[1724800590010,0.00061524,59369.0,59368.0,1.25139375]
[1724800590451,0.00061524,59369.0,59368.0,1.26539375]
[1724800593587,0.19881524,59369.0,59368.0,1.26539375]
[1724800594804,0.19881524,59369.0,59368.0,1.25139375]
[1724800595212,0.19881524,59369.0,59368.0,1.24939375]
[1724800595487,0.19881524,59369.0,59368.0,1.26039375]
[1724800595902,0.19881524,59369.0,59368.0,1.24839375]
[1724800596204,0.19881524,59369.0,59368.0,1.24139375]
[1724800596407,0.19881524,59369.0,59368.0,1.24539375]
[1724800596609,0.19881524,59369.0,59368.0,1.24139375]
[1724800596740,0.19881524,59369.0,59368.0,1.24339375]
[1724800596987,0.19881524,59369.0,59368.0,1.25339375]
[1724800598594,0.19881524,59369.0,59368.0,1.24739375]
[1724800598905,0.19881524,59369.0,59368.0,1.24839375]
[1724800599135,0.19881524,59369.0,59368.0,1.24139375]
[1724800599513,0.19881524,59369.0,59368.0,1.24739375]
[1724800599711,0.19881524,59369.0,59368.0,1.24339375]
[1724800599920,0.19881524,59369.0,59368.0,1.24939375]
[1724800600120,0.19881524,59369.0,59368.0,1.24339375]
[1724800600321,0.00061524,59369.0,59368.0,1.24339375]
[1724800600561,0.00061524,59369.0,59368.0,1.24839375]
[1724800600732,0.00061524,59369.0,59368.0,1.25839375]
[1724800601912,0.00061524,59369.0,59368.0,1.24739375]
[1724800602093,0.00061524,59369.0,59368.0,1.25939375]
[1724800602533,0.37771524,59369.0,59368.0,0.01]
[1724800602733,0.37771524,59369.0,59368.0,0.013]
[1724800602883,0.37771524,59369.0,59368.0,0.024]
[1724800603296,0.21761524,59369.0,59368.0,0.024]
[1724800603500,0.21761524,59369.0,59363.0,0.00336899]
[1724800603501,0.00061524,59369.0,59363.0,0.17726899]
[1724800603872,0.00061524,59369.0,59368.0,0.004]
[1724800604603,0.00061524,59369.0,59368.0,0.015]
[1724800604986,0.00061524,59369.0,59368.0,0.011]
[1724800605603,0.00061524,59369.0,59368.0,0.023]
[1724800605792,0.00061524,59369.0,59368.0,0.011]
[1724800605988,0.00061524,59369.0,59368.0,0.012]
[1724800606232,0.00061524,59369.0,59368.0,0.024]
[1724800606644,0.00061524,59369.0,59368.0,0.012]
[1724800607050,0.00061524,59369.0,59368.0,0.023]
[1724800607674,0.21651524,59369.0,59368.0,0.012]
[1724800608488,0.21651524,59369.0,59368.0,0.025]
[1724800608635,0.21651524,59369.0,59368.0,0.012]
[1724800608845,0.21651524,59369.0,59368.0,0.024]
[1724800609408,0.21651524,59369.0,59363.0,1.23739375]
[1724800609829,0.21651524,59369.0,59368.0,0.011]
[1724800610242,0.21651524,59369.0,59368.0,0.013]
[1724800611390,0.21651524,59369.0,59363.0,1.23739375]
[1724800611615,0.21651524,59369.0,59368.0,0.012]
[1724800611616,0.38911524,59369.0,59368.0,0.012]
[1724800611812,0.38911524,59369.0,59362.0,0.000817]
[1724800611813,0.3825,59363.0,59362.0,0.000817]
[1724800612005,0.1726,59359.0,59342.0,0.00020285]
[1724800612266,0.005,59361.0,59342.0,0.00020285]
[1724800612267,0.3775,59345.0,59342.0,0.00020285]
[1724800612449,0.2049,59344.0,59342.0,0.00020285]
[1724800613252,0.1586,59343.0,59342.0,0.00301985]
[1724800613427,0.3688,59343.0,59342.0,0.00301985]
[1724800613831,0.39519274,59343.0,59342.0,0.00301985]
[1724800614031,0.39519274,59343.0,59342.0,0.01001985]
[1724800614441,0.39519274,59343.0,59342.0,0.00101985]
[1724800614856,0.39519274,59343.0,59342.0,0.00901985]
[1724800615175,0.39519274,59343.0,59316.0,0.1643]
[1724800615176,0.202,59342.0,59316.0,0.1593]
[1724800615385,0.52611509,59333.0,59317.0,0.1]
[1724800615763,0.202,59333.0,59317.0,0.1]
[1724800615965,0.202,59333.0,59318.0,0.00337102]
[1724800616165,0.202,59333.0,59317.0,0.1]
[1724800616545,0.202,59333.0,59332.0,0.014817]
[1724800616956,0.0263932,59336.0,59332.0,0.014817]
[1724800617362,0.2136,59338.0,59332.0,0.014817]
[1724800618182,0.2136,59338.0,59332.0,0.020817]
[1724800618183,0.001,59333.0,59332.0,0.020817]
[1724800618419,0.001,59333.0,59332.0,0.006817]
[1724800618552,0.2136,59338.0,59332.0,0.014817]
[1724800618753,0.2136,59338.0,59332.0,0.000817]
[1724800619148,0.2136,59338.0,59332.0,0.014817]
[1724800619969,0.001,59338.0,59332.0,0.026817]
[1724800620521,0.00079725,59338.0,59332.0,0.026817]
[1724800623374,0.00079725,59338.0,59334.0,0.2135]
[1724800623777,0.00079725,59338.0,59332.0,0.026817]
[1724800624181,0.2033,59339.0,59333.0,0.00337046]
[1724800624388,0.2033,59339.0,59332.0,0.000817]
[1724800624591,0.001,59338.0,59334.0,0.013]
[1724800624796,0.001,59338.0,59334.0,0.027]
[1724800625018,0.001,59338.0,59334.0,0.013]
[1724800626489,0.22969092,59344.0,59332.0,0.000817]
[1724800626950,0.22969092,59344.0,59333.0,0.011817]
[1724800626951,0.001,59339.0,59333.0,0.011817]
[1724800627447,0.22969092,59344.0,59333.0,0.011817]
[1724800627448,0.22969092,59344.0,59333.0,0.000817]
[1724800627659,0.22969092,59344.0,59334.0,0.014]
[1724800627863,0.23069092,59344.0,59333.0,0.000817]
[1724800628311,0.2048,59339.0,59333.0,0.013817]
[1724800628528,0.52891509,59334.0,59333.0,0.011817]
[1724800629246,0.2048,59334.0,59333.0,0.011817]
[1724800629709,0.1691,59338.0,59333.0,0.011817]
[1724800629710,0.1691,59338.0,59333.0,0.008817]
[1724800629935,0.32970055,59347.0,59333.0,0.008817]
[1724800629936,0.2066,59339.0,59333.0,0.008817]
[1724800630140,0.2066,59339.0,59333.0,0.014817]
[1724800630769,0.2066,59339.0,59333.0,0.008817]
[1724800631007,0.001,59338.0,59333.0,0.021817]
[1724800631200,0.2066,59334.0,59333.0,0.021817]
[1724800631406,0.3803,59334.0,59333.0,0.008817]
[1724800631694,0.45084151,59334.0,59333.0,0.000817]
[1724800632019,0.3803,59334.0,59333.0,0.025817]
[1724800632472,0.40669269,59334.0,59333.0,0.025817]
[1724800632695,0.40669269,59334.0,59333.0,0.011817]
[1724800632917,0.40669269,59334.0,59333.0,0.013817]
[1724800633090,0.40669269,59334.0,59333.0,0.002817]
[1724800633228,0.40669269,59334.0,59333.0,0.000817]
[1724800633428,0.40669269,59334.0,59333.0,0.001817]
[1724800633636,0.40669269,59334.0,59333.0,0.003817]
[1724800633952,0.40669269,59334.0,59333.0,0.002817]
[1724800634157,0.23299269,59334.0,59333.0,0.003817]
[1724800636986,0.23299269,59334.0,59333.0,0.001817]
[1724800637399,0.23299269,59334.0,59333.0,0.000817]
[1724800637872,0.23599269,59334.0,59333.0,0.000817]
[1724800638271,0.23299269,59334.0,59333.0,0.000817]
[1724800638700,0.23299269,59334.0,59333.0,0.001817]
[1724800638701,0.02639269,59334.0,59333.0,0.001817]
[1724800638948,0.02639269,59334.0,59333.0,0.003817]
[1724800640180,0.00089871,59338.0,59333.0,0.003817]
[1724800640618,0.00089871,59338.0,59334.0,0.17107026]
[1724800640764,0.00089871,59338.0,59334.0,0.1677]
[1724800641508,0.00389871,59338.0,59334.0,0.1677]
[1724800641714,0.00389871,59338.0,59333.0,0.000817]
[1724800641918,0.00089871,59338.0,59333.0,0.000817]
[1724800642292,0.00089871,59338.0,59335.0,0.1997]
[1724800642504,0.00089871,59338.0,59333.0,0.000817]
[1724800642505,0.2176,59337.0,59333.0,0.000817]
[1724800642924,0.381,59337.0,59333.0,0.000817]
[1724800643117,0.381,59337.0,59333.0,0.012817]
[1724800643330,0.70511509,59337.0,59333.0,0.012817]
[1724800643752,0.2176,59336.0,59333.0,0.000817]
[1724800644142,0.2176,59336.0,59334.0,0.01]
[1724800644555,0.00089871,59338.0,59333.0,0.000817]
[1724800644960,0.001,59336.0,59333.0,0.006817]
[1724800645162,0.001,59336.0,59333.0,0.019817]
[1724800645363,0.00089871,59338.0,59333.0,0.000817]
[1724800645765,0.00089871,59338.0,59333.0,0.010817]
[1724800646077,0.00089871,59338.0,59333.0,0.004817]
[1724800646490,0.00089871,59338.0,59333.0,0.012817]
[1724800646692,0.00089871,59338.0,59333.0,0.004817]
[1724800647115,0.00089871,59338.0,59333.0,0.010817]
[1724800647327,0.00089871,59338.0,59334.0,1.43222507]
[1724800647535,0.05023745,59358.0,59341.0,0.1993]
[1724800647762,0.07535618,59368.0,59340.0,0.1731]
[1724800647763,0.50540786,59354.0,59349.0,0.1993]
[1724800647977,0.000819,59370.0,59350.0,1.50495581]
[1724800648193,0.03964912,59368.0,59354.0,0.1993]
[1724800648320,0.000819,59370.0,59355.0,1.42795581]
[1724800648522,0.00061524,59369.0,59355.0,1.52795581]
[1724800649316,0.005,59368.0,59355.0,1.33649504]
[1724800649513,0.005,59368.0,59357.0,0.3674]
[1724800649740,0.005,59368.0,59358.0,0.29482932]
[1724800649975,0.005,59368.0,59359.0,1.24149504]
[1724800650196,0.005,59368.0,59360.0,0.29146077]
[1724800650404,0.005,59368.0,59367.0,0.3724]
[1724800650612,0.005,59368.0,59367.0,0.66386077]
[1724800650807,0.00589871,59368.0,59367.0,0.66386077]
[1724800651023,0.00089871,59368.0,59367.0,0.66386077]
[1724800651435,0.00089871,59368.0,59367.0,0.65886077]
[1724800651853,0.00089871,59368.0,59367.0,0.4674]
[1724800652061,0.00089871,59368.0,59367.0,0.4904]
[1724800652322,0.00089871,59368.0,59367.0,0.67286077]
[1724800653067,0.00089871,59368.0,59367.0,0.5044]
[1724800653291,0.00089871,59368.0,59367.0,0.67286077]
[1724800653489,0.00089871,59368.0,59367.0,0.68686077]
[1724800653640,0.00089871,59368.0,59367.0,0.66386077]
[1724800653860,0.008987,59380.0,59372.0,1.23416209]
[1724800654031,0.008987,59380.0,59373.0,1.42562286]
[1724800654236,0.008987,59380.0,59374.0,0.1]
[1724800654492,0.008987,59380.0,59375.0,0.023]
[1724800654634,0.008987,59380.0,59374.0,0.1]
[1724800655600,0.008987,59380.0,59375.0,0.00336777]
[1724800656781,0.009987,59380.0,59375.0,0.00336777]
[1724800656925,0.009987,59380.0,59375.0,0.01736777]
[1724800657383,0.008987,59380.0,59375.0,0.01736777]
[1724800657615,0.009987,59380.0,59375.0,0.028]
[1724800658256,0.009987,59380.0,59375.0,0.014]
[1724800658257,0.008987,59380.0,59375.0,0.014]
[1724800658475,0.009987,59380.0,59375.0,0.028]
[1724800659280,0.009987,59380.0,59375.0,0.014]
[1724800659607,0.009987,59380.0,59375.0,0.028]
[1724800665237,0.009987,59380.0,59376.0,1.23416209]
[1724800665444,0.009987,59380.0,59378.0,0.2151]
[1724800665686,0.009987,59380.0,59379.0,0.1]
[1724800666073,0.009987,59380.0,59376.0,1.23416209]
[1724800666074,0.217587,59380.0,59376.0,1.23416209]
[1724800666309,0.216587,59380.0,59376.0,1.23416209]
[1724800666505,0.217587,59380.0,59377.0,0.1]
[1724800667164,0.217587,59380.0,59378.0,0.014]
[1724800667456,0.008987,59380.0,59378.0,0.014]
[1724800667830,0.009987,59380.0,59378.0,0.014]
[1724800668556,0.009987,59380.0,59377.0,0.11736785]
[1724800668868,0.009987,59380.0,59379.0,0.2111]
[1724800669086,0.008987,59380.0,59379.0,0.50256077]
[1724800669516,0.009987,59380.0,59379.0,0.50256077]
[1724800669843,0.008987,59380.0,59379.0,0.50256077]
[1724800670059,0.009987,59380.0,59379.0,0.51656077]
[1724800670638,0.008987,59380.0,59379.0,0.50256077]
[1724800671008,0.009987,59380.0,59379.0,0.52156077]
[1724800671261,0.009987,59380.0,59379.0,0.51656077]
[1724800671700,0.009987,59380.0,59379.0,0.53056077]
[1724800673155,0.009987,59380.0,59379.0,0.53556077]
[1724800673515,0.008987,59387.0,59379.0,0.53556077]
[1724800673516,0.2006,59404.0,59389.0,0.3634]
[1724800673728,0.2006,59404.0,59390.0,0.123]
[1724800676391,0.2006,59404.0,59390.0,0.137]
[1724800676771,0.2006,59404.0,59390.0,0.123]
[1724800676964,0.2006,59404.0,59390.0,0.151]
[1724800678474,0.2006,59393.0,59390.0,0.128]
[1724800678675,0.2006,59393.0,59390.0,0.028]
[1724800678901,0.1667,59407.0,59390.0,0.028]
[1724800679063,0.207498,59398.0,59390.0,0.028]
[1724800679264,0.207498,59398.0,59390.0,0.014]
[1724800679466,0.207498,59398.0,59386.0,0.1]
[1724800679689,0.207498,59398.0,59390.0,0.028]
[1724800680119,0.207498,59398.0,59390.0,0.051]
[1724800680339,0.207498,59398.0,59390.0,0.023]
[1724800680544,0.207498,59398.0,59389.0,0.023]
[1724800680756,0.207498,59398.0,59389.0,0.19146077]
[1724800680963,0.207498,59398.0,59390.0,0.1]
[1724800681204,0.207498,59398.0,59390.0,0.123]
[1724800682214,0.207498,59398.0,59390.0,0.137]
[1724800682984,0.207498,59398.0,59390.0,0.151]
[1724800683381,0.207498,59398.0,59390.0,0.365]
[1724800683764,0.207498,59398.0,59390.0,1.55239809]
[1724800683961,0.207498,59398.0,59390.0,1.33839809]
[1724800684889,0.207498,59398.0,59390.0,1.32439809]
[1724800685103,0.207498,59398.0,59390.0,1.31039809]
[1724800685338,0.207498,59398.0,59390.0,1.33839809]
[1724800685541,0.207498,59398.0,59390.0,1.32439809]
[1724800685715,0.207498,59398.0,59390.0,1.31039809]
[1724800685885,0.207498,59398.0,59390.0,1.32439809]
[1724800686067,0.008998,59398.0,59390.0,1.32439809]
[1724800686494,0.008998,59398.0,59390.0,1.33839809]
[1724800686670,0.008998,59398.0,59390.0,1.32439809]
[1724800687077,0.2105,59397.0,59390.0,1.30139809]
[1724800687306,0.2105,59395.0,59390.0,1.30139809]
[1724800687478,0.2105,59395.0,59390.0,1.20139809]
[1724800688934,0.2105,59395.0,59390.0,1.18739809]
[1724800689149,0.2105,59395.0,59390.0,1.20139809]
[1724800689359,0.1577,59396.0,59390.0,1.21539809]
[1724800689360,0.3691,59394.0,59390.0,1.21539809]
[1724800689604,0.3691,59395.0,59390.0,0.028]
[1724800689799,0.03419505,59395.0,59390.0,0.028]
[1724800690007,0.2161,59394.0,59390.0,0.014]
[1724800690768,0.008998,59398.0,59381.0,1.18739809]
[1724800690769,0.2161,59392.0,59381.0,1.18739809]
[1724800691149,0.2161,59392.0,59390.0,0.007]
[1724800691402,0.1715,59391.0,59390.0,0.007]
[1724800691573,0.3876,59391.0,59390.0,0.017]
[1724800691824,0.2161,59390.0,59381.0,1.18739809]
[1724800692019,0.2161,59390.0,59381.0,1.19139809]
[1724800692200,0.2161,59390.0,59381.0,1.19339809]
[1724800692337,0.2161,59390.0,59381.0,1.18939809]
[1724800692542,0.2161,59390.0,59381.0,1.18739809]
[1724800693181,0.2161,59390.0,59381.0,1.19339809]
[1724800694155,0.2161,59390.0,59382.0,1.18739809]
[1724800695249,0.1715,59391.0,59382.0,1.18739809]
[1724800695250,0.2046,59388.0,59382.0,1.18739809]
[1724800695372,0.2046,59388.0,59382.0,1.19639809]
[1724800695775,0.20439733,59388.0,59382.0,1.19639809]
[1724800695978,0.20439733,59388.0,59382.0,1.19339809]
[1724800696202,0.20439733,59388.0,59382.0,1.18739809]
[1724800696443,0.20439733,59388.0,59382.0,1.19239809]
[1724800697439,0.20439733,59388.0,59382.0,1.20039809]
[1724800697658,0.20439733,59388.0,59382.0,1.18739809]
[1724800697861,0.20439733,59388.0,59382.0,1.19539809]
[1724800698072,0.20439733,59388.0,59382.0,1.20639809]
[1724800698284,0.008998,59398.0,59383.0,0.00336765]
[1724800698506,0.008998,59398.0,59384.0,1.18739809]
[1724800698507,0.1699,59397.0,59384.0,1.18739809]
[1724800698709,0.1999,59396.0,59385.0,0.00336746]
[1724800698938,0.1999,59396.0,59386.0,0.2094]
[1724800699135,0.008998,59398.0,59388.0,0.1632]
[1724800699381,0.0008976,59391.0,59389.0,0.29146077]
[1724800699867,0.0008976,59391.0,59390.0,1.18739809]
[1724800700072,0.0008976,59391.0,59390.0,1.31039809]
[1724800700713,0.0008976,59391.0,59390.0,0.67476077]
[1724800700893,0.0008976,59391.0,59390.0,0.79694274]
[1724800701098,0.008998,59398.0,59397.0,0.005]
[1724800701262,0.008998,59398.0,59397.0,0.89891526]
[1724800701462,0.008998,59398.0,59397.0,0.99891526]
[1724800702050,0.008998,59398.0,59397.0,1.07377494]
[1724800702251,0.008998,59398.0,59397.0,0.99891526]
[1724800702473,0.008998,59398.0,59397.0,1.08777494]
[1724800702648,0.008998,59398.0,59397.0,1.10177494]
[1724800703077,0.008998,59398.0,59397.0,1.47519348]
[1724800703432,0.008998,59398.0,59397.0,1.0323867]
[1724800703636,0.008998,59398.0,59397.0,0.75328484]
[1724800703839,0.008998,59398.0,59397.0,0.2794]
[1724800704171,0.008998,59398.0,59397.0,0.114]
[1724800704772,0.008998,59398.0,59397.0,0.128]
[1724800704970,0.008998,59398.0,59397.0,0.114]
[1724800705173,0.008998,59398.0,59397.0,0.014]
[1724800705375,0.213998,59398.0,59397.0,0.028]
[1724800705615,0.213998,59398.0,59397.0,0.014]
[1724800705819,0.213998,59398.0,59390.0,0.00336706]
[1724800706020,0.008998,59398.0,59390.0,0.00336706]
[1724800706217,0.008998,59398.0,59397.0,0.014]
[1724800706907,0.008998,59398.0,59397.0,0.028]
[1724800707379,0.207298,59398.0,59397.0,0.014]
[1724800707613,0.370998,59398.0,59397.0,0.014]
[1724800707772,0.008998,59398.0,59397.0,0.014]
[1724800708347,0.008998,59398.0,59397.0,1.57315886]
[1724800708551,0.1983,59411.0,59401.0,1.16940209]
[1724800708755,0.1983,59411.0,59402.0,1.16940209]
[1724800708959,0.1983,59411.0,59403.0,0.1]
[1724800709375,0.1983,59411.0,59403.0,0.10336645]
[1724800709504,0.1983,59411.0,59403.0,0.1]
[1724800709944,0.1983,59411.0,59403.0,0.10336646]
[1724800710145,0.1983,59411.0,59403.0,0.1]
[1724800710361,0.1983,59416.0,59404.0,0.35506077]
[1724800710768,0.1983,59416.0,59405.0,0.1]
[1724800711225,0.008998,59428.0,59406.0,0.00336607]
[1724800711226,0.2038,59422.0,59406.0,0.00336607]
[1724800712468,0.2048,59422.0,59406.0,0.00336607]
[1724800713361,0.2048,59422.0,59405.0,0.26846077]
[1724800713567,0.2048,59422.0,59405.0,0.1]
[1724800713796,0.2038,59422.0,59406.0,0.01]
[1724800714174,0.2038,59422.0,59406.0,0.022]
[1724800714409,0.2038,59422.0,59406.0,0.012]
[1724800714607,0.2038,59422.0,59400.0,0.1]
[1724800714849,0.2038,59422.0,59406.0,0.007]
[1724800715427,0.2038,59422.0,59407.0,0.20066619]
[1724800715692,0.2038,59422.0,59408.0,0.1]
[1724800715849,0.2038,59422.0,59409.0,0.00336601]
[1724800716413,0.2038,59422.0,59410.0,1.16940209]
[1724800716654,0.2038,59422.0,59411.0,0.10336601]
[1724800718055,0.2038,59422.0,59411.0,0.1]
[1724800718701,0.2038,59422.0,59411.0,0.113]
[1724800719163,0.2038,59422.0,59411.0,0.11636601]
[1724800719763,0.2038,59422.0,59411.0,0.13036601]
[1724800720961,0.2038,59422.0,59411.0,0.127]
[1724800722207,0.2038,59422.0,59412.0,1.16940209]
[1724800722405,0.2038,59422.0,59413.0,0.1]
[1724800722660,0.2038,59422.0,59414.0,1.16940209]
[1724800723252,0.204616,59422.0,59414.0,1.16940209]
[1724800724239,0.204616,59422.0,59414.0,1.18340209]
[1724800724655,0.204616,59422.0,59414.0,1.19640209]
[1724800728192,0.204616,59422.0,59415.0,1.16940209]
[1724800729725,0.204616,59422.0,59415.0,1.18340209]
[1724800730134,0.204616,59422.0,59415.0,1.19640209]
[1724800730337,0.000816,59422.0,59415.0,1.19640209]
[1724800732568,0.1989,59421.0,59415.0,1.19640209]
[1724800733334,0.1989,59421.0,59415.0,1.18340209]
[1724800733535,0.1989,59421.0,59415.0,1.16940209]
[1724800733917,0.1989,59421.0,59415.0,1.19740209]
[1724800734339,0.1989,59421.0,59416.0,1.16940209]
[1724800736079,0.199718,59421.0,59416.0,1.16940209]
[1724800736700,0.199718,59421.0,59416.0,1.18340209]
[1724800736902,0.199718,59421.0,59416.0,1.19740209]
[1724800738018,0.000818,59421.0,59417.0,0.1918]
[1724800738729,0.000818,59421.0,59416.0,0.028]
[1724800739288,0.000818,59421.0,59416.0,0.014]
[1724800739700,0.000818,59421.0,59410.0,0.1]
[1724800740079,0.000818,59421.0,59417.0,0.028]
[1724800740273,0.000818,59421.0,59417.0,0.014]
[1724800740386,0.000818,59421.0,59410.0,0.10336609]
[1724800740588,0.000818,59421.0,59416.0,0.028]
[1724800740787,0.000818,59421.0,59416.0,0.014]
[1724800740989,0.2025,59420.0,59416.0,0.014]
[1724800741244,0.2025,59420.0,59410.0,0.114]
[1724800741619,0.2025,59420.0,59410.0,0.128]
[1724800742050,0.2025,59420.0,59410.0,0.028]
[1724800742671,0.2025,59420.0,59410.0,0.014]
[1724800742902,0.2025,59420.0,59407.0,0.1]
[1724800743096,0.2025,59420.0,59410.0,0.014]
[1724800743294,0.2025,59420.0,59416.0,0.014]
[1724800743471,0.1833,59416.0,59410.0,0.014]
[1724800743874,0.1833,59416.0,59410.0,0.028]
[1724800744069,0.1833,59416.0,59410.0,0.014]
[1724800744295,0.1833,59416.0,59403.0,0.1]
[1724800744705,0.1833,59416.0,59407.0,0.014]
[1724800744875,0.1513,59420.0,59408.0,0.2653]
[1724800745074,0.1513,59420.0,59409.0,0.10336609]
[1724800745455,0.000818,59421.0,59409.0,0.10336609]
[1724800745687,0.000818,59421.0,59410.0,1.16940209]
[1724800745860,0.000818,59421.0,59411.0,0.10336576]
[1724800746287,0.000818,59421.0,59411.0,0.15317182]
[1724800746676,0.000818,59421.0,59411.0,0.10336576]
[1724800747512,0.000818,59421.0,59411.0,0.11236576]
[1724800748173,0.000818,59421.0,59412.0,1.33786286]
[1724800748356,0.000818,59421.0,59414.0,0.1594]
[1724800748615,0.000818,59421.0,59415.0,0.23216548]
[1724800748924,0.000818,59421.0,59415.0,0.2288]
[1724800750110,0.000818,59421.0,59415.0,0.2428]
[1724800751942,0.158018,59421.0,59415.0,0.128]
[1724800752098,0.158018,59421.0,59416.0,1.16940209]
[1724800752297,0.158018,59421.0,59417.0,0.1]
[1724800754001,0.158018,59421.0,59417.0,0.114]
[1724800754210,0.158018,59421.0,59417.0,0.014]
[1724800754961,0.1553,59420.0,59417.0,0.014]
[1724800755131,0.1553,59418.0,59417.0,0.028]
[1724800755340,0.62672979,59418.0,59417.0,0.028]